fUSD/lending_fUSD_20250105
["ID","MTS","AMOUNT","RATE_DAILY","PERIOD"]
[347678288,1736051249105,-606.96,0.00010679,2]
[347678289,1736051249129,-1347.54,0.00010679,2]
[347678290,1736051249153,-500.0,0.00010679,2]
[347678291,1736051249180,-606.76,0.00010679,2]
[347678292,1736051249203,-754.61,0.00010679,2]
[347678293,1736051249228,-500.0,0.00010679,2]
[347678294,1736051249255,-330.44,0.00010679,2]
[347678295,1736051249280,-528.74,0.00010679,2]
[347678296,1736051249307,-1238.95,0.00010679,2]
[347678297,1736051249332,-547.29,0.00010679,2]
[347678298,1736051249358,-730.87,0.00010679,2]
[347678299,1736051249383,-360.77,0.0001068,2]
[347678300,1736051249408,-500.0,0.0001068,2]
[347678301,1736051249432,-500.0,0.0001068,2]
[347678302,1736051249456,-500.0,0.0001068,2]
[347678303,1736051249481,-500.0,0.0001068,2]
[347678304,1736051249505,-500.0,0.0001068,2]
[347678305,1736051249528,-500.0,0.0001068,2]
[347678306,1736051249553,-500.0,0.0001068,2]
[347678307,1736051249578,-500.0,0.0001068,2]
[347678308,1736051249602,-500.0,0.0001068,2]
[347678309,1736051249627,-500.0,0.0001068,2]
[347678310,1736051249651,-500.0,0.0001068,2]
[347678311,1736051249677,-383.57833754,0.0001068,2]
[347678312,1736051249701,-500.0,0.0001068,2]
[347678313,1736051249727,-261.61,0.0001068,2]
[347678314,1736051249752,-500.0,0.0001068,2]
[347678315,1736051249776,-500.0,0.0001068,2]
[347678316,1736051249801,-500.0,0.0001068,2]
[347678317,1736051249824,-500.0,0.0001068,2]
[347678318,1736051249848,-500.0,0.0001068,2]
[347678319,1736051249873,-500.0,0.0001068,2]
[347678320,1736051249897,-500.0,0.0001068,2]
[347678321,1736051249921,-294.72,0.0001068,2]
[347678322,1736051250167,-500.0,0.0001068,2]
[347678323,1736051250197,-500.0,0.0001068,2]
[347678324,1736051250224,-500.0,0.0001068,2]
[347678325,1736051250246,-407.09,0.0001068,2]
[347678326,1736051250270,-500.0,0.0001068,2]
[347678327,1736051250296,-159.68923544,0.0001068,2]
[347678328,1736051250322,-500.0,0.0001068,2]
[347678329,1736051250345,-500.0,0.0001068,2]
[347678330,1736051250368,-436.19,0.0001068,2]
[347678331,1736051250391,-500.0,0.0001068,2]
[347678332,1736051250413,-244.6,0.0001068,2]
[347678333,1736051250437,-500.0,0.0001068,2]
[347678334,1736051250463,-187.19,0.0001068,2]
[347678335,1736051250486,-193.04,0.0001068,2]
[347678336,1736051250509,-500.0,0.0001068,2]
[347678337,1736051250532,-289.68,0.0001068,2]
[347678338,1736051250555,-500.0,0.0001068,2]
[347678339,1736051250579,-323.89,0.0001068,2]
[347678340,1736051250603,-484.12,0.0001068,2]
[347678341,1736051250633,-206.13,0.0001068,2]
[347678342,1736051250657,-153.35,0.0001068,2]
[347678343,1736051250683,-500.0,0.0001068,2]
[347678344,1736051250708,-635.41,0.0001068,2]
[347678345,1736051250732,-560.62,0.0001068,2]
[347678346,1736051250757,-619.95,0.0001068,2]
[347678347,1736051250781,-554.44,0.0001068,2]
[347678348,1736051250805,-553.55,0.0001068,2]
[347678349,1736051250829,-412.61,0.0001068,2]
[347678350,1736051250853,-470.27,0.0001068,2]
[347678351,1736051250877,-563.11,0.0001068,2]
[347678352,1736051250901,-476.53,0.0001068,2]
[347678353,1736051250925,-500.0,0.0001068,2]
[347678354,1736051250948,-500.0,0.0001068,2]
[347678355,1736051250972,-356.12,0.0001068,2]
[347678356,1736051250995,-500.0,0.0001068,2]
[347678357,1736051251019,-187.52,0.0001068,2]
[347678358,1736051251042,-500.0,0.0001068,2]
[347678359,1736051251065,-500.0,0.0001068,2]
[347678360,1736051251089,-156.18,0.0001068,2]
[347678361,1736051251112,-366.7,0.0001068,2]
[347678362,1736051251134,-208.71,0.0001068,2]
[347678363,1736051251156,-200.15,0.0001068,2]
[347678364,1736051251179,-500.0,0.0001068,2]
[347678365,1736051251202,-841.26,0.0001068,2]
[347678366,1736051251225,-841.26,0.0001068,2]
[347678367,1736051251255,-370.27,0.0001068,2]
[347678368,1736051251278,-500.0,0.0001068,2]
[347678369,1736051251303,-500.0,0.0001068,2]
[347678370,1736051251327,-500.0,0.0001068,2]
[347678371,1736051251351,-500.0,0.0001068,2]
[347678372,1736051251375,-1153.38,0.0001068,2]
[347678373,1736051251399,-500.0,0.0001068,2]
[347678374,1736051251422,-290.81,0.0001068,2]
[347678375,1736051251445,-500.0,0.0001068,2]
[347678376,1736051251469,-500.0,0.0001068,2]
[347678377,1736051251492,-577.30038413,0.0001068,2]
[347678378,1736051251515,-500.0,0.0001068,2]
[347678379,1736051251537,-500.0,0.0001068,2]
[347678380,1736051251560,-500.0,0.0001068,2]
[347678381,1736051251584,-520.24,0.0001068,2]
[347678382,1736051251608,-500.0,0.0001068,2]
[347678383,1736051251634,-500.0,0.0001068,2]
[347678384,1736051251662,-760.0,0.0001068,2]
[347678385,1736051251685,-500.0,0.0001068,2]
[347678386,1736051251708,-500.0,0.0001068,2]
[347678387,1736051251731,-500.0,0.0001068,2]
[347678388,1736051251754,-500.0,0.0001068,2]
[347678389,1736051251778,-500.0,0.0001068,2]
[347678390,1736051251802,-788.82,0.0001068,2]
[347678391,1736051251826,-500.0,0.0001068,2]
[347678392,1736051251849,-500.0,0.0001068,2]
[347678393,1736051251872,-531.92,0.0001068,2]
[347678394,1736051251896,-500.0,0.0001068,2]
[347678395,1736051251919,-500.0,0.0001068,2]
[347678396,1736051251943,-500.0,0.0001068,2]
[347678397,1736051251966,-500.0,0.0001068,2]
[347678398,1736051251992,-500.0,0.0001068,2]
[347678399,1736051252015,-349.71,0.0001068,2]
[347678400,1736051252038,-500.0,0.0001068,2]
[347678401,1736051252062,-500.0,0.0001068,2]
[347678402,1736051252086,-500.0,0.0001068,2]
[347678403,1736051252110,-500.0,0.0001068,2]
[347678404,1736051252133,-500.0,0.0001068,2]
[347678405,1736051252155,-500.0,0.0001068,2]
[347678406,1736051252179,-1540.896891,0.0001068,2]
[347678407,1736051252203,-1540.896891,0.0001068,2]
[347678408,1736051252228,-500.0,0.0001068,2]
[347678409,1736051252250,-500.0,0.0001068,2]
[347678410,1736051252272,-156.453335,0.0001068,2]
[347678411,1736051252295,-156.453335,0.0001068,2]
[347678412,1736051252318,-500.0,0.0001068,2]
[347678413,1736051252341,-500.0,0.0001068,2]
[347678414,1736051252364,-500.0,0.0001068,2]
[347678415,1736051252386,-500.0,0.0001068,2]
[347678416,1736051252409,-500.0,0.0001068,2]
[347678417,1736051252433,-373.53,0.0001068,2]
[347678418,1736051252460,-156.573944,0.0001068,2]
[347678419,1736051252482,-500.0,0.0001068,2]
[347678420,1736051252505,-471.32173924,0.0001068,2]
[347678421,1736051252528,-500.0,0.0001068,2]
[347678422,1736051252552,-500.0,0.0001068,2]
[347678423,1736051252575,-500.0,0.0001068,2]
[347678424,1736051252598,-500.0,0.0001068,2]
[347678425,1736051252621,-500.0,0.0001068,2]
[347678426,1736051252645,-500.0,0.0001068,2]
[347678427,1736051252668,-434.27978136,0.0001068,2]
[347678428,1736051252691,-500.0,0.0001068,2]
[347678429,1736051252715,-500.0,0.0001068,2]
[347678430,1736051252739,-283.50690812,0.0001068,2]
[347678431,1736051252762,-232.53,0.0001068,2]
[347678432,1736051252785,-500.0,0.0001068,2]
[347678433,1736051252811,-500.0,0.0001068,2]
[347678434,1736051252834,-1863.827328,0.0001068,2]
[347678435,1736051252859,-1863.827328,0.0001068,2]
[347678436,1736051252883,-500.0,0.0001068,2]
[347678437,1736051252907,-518.85,0.0001068,2]
[347678438,1736051252931,-565.52586593,0.0001068,2]
[347678439,1736051252955,-500.0,0.0001068,2]
[347678440,1736051252978,-500.0,0.0001068,2]
[347678441,1736051253006,-1500.71,0.0001068,2]
[347678442,1736051253029,-500.0,0.0001068,2]
[347678443,1736051253054,-500.0,0.0001068,2]
[347678444,1736051253079,-500.0,0.0001068,2]
[347678445,1736051253104,-500.0,0.0001068,2]
[347678446,1736051253127,-500.0,0.0001068,2]
[347678447,1736051253151,-500.0,0.0001068,2]
[347678448,1736051253175,-500.0,0.0001068,2]
[347678449,1736051253199,-500.0,0.0001068,2]
[347678450,1736051253226,-500.0,0.0001068,2]
[347678451,1736051253252,-500.0,0.0001068,2]
[347678452,1736051253278,-500.0,0.0001068,2]
[347678453,1736051253302,-569.81865174,0.0001068,2]
[347678454,1736051253331,-500.0,0.0001068,2]
[347678455,1736051253355,-500.0,0.0001068,2]
[347678456,1736051253380,-500.0,0.0001068,2]
[347678457,1736051253408,-500.0,0.0001068,2]
[347678458,1736051253432,-500.0,0.0001068,2]
[347678459,1736051253457,-495.78750981,0.0001068,2]
[347678460,1736051253481,-500.0,0.0001068,2]
[347678461,1736051253506,-500.0,0.0001068,2]
[347678462,1736051253536,-500.0,0.0001068,2]
[347678463,1736051253565,-500.0,0.0001068,2]
[347678464,1736051253603,-376.81,0.0001068,2]
[347678465,1736051253631,-599.07,0.0001068,2]
[347678466,1736051253658,-500.0,0.0001068,2]
[347678467,1736051253874,-169.0,0.0001068,2]
[347678468,1736051253903,-500.0,0.0001068,2]
[347678469,1736051253930,-500.0,0.0001068,2]
[347678470,1736051253957,-500.0,0.0001068,2]
[347678471,1736051253983,-500.0,0.0001068,2]
[347678472,1736051254011,-500.0,0.0001068,2]
[347678473,1736051254039,-2093.2,0.0001068,2]
[347678474,1736051254066,-583.95,0.0001068,2]
[347678475,1736051254093,-500.0,0.0001068,2]
[347678476,1736051254119,-500.0,0.0001068,2]
[347678477,1736051254145,-500.0,0.0001068,2]
[347678478,1736051254172,-500.0,0.0001068,2]
[347678479,1736051254198,-1060.83,0.0001068,2]
[347678480,1736051254222,-500.0,0.0001068,2]
[347678481,1736051254250,-198.46,0.0001068,2]
[347678482,1736051254275,-500.0,0.0001068,2]
[347678483,1736051254302,-500.0,0.0001068,2]
[347678484,1736051254330,-500.0,0.0001068,2]
[347678485,1736051254357,-1546.57,0.0001068,2]
[347678486,1736051254384,-922.36,0.0001068,2]
[347678487,1736051254409,-152.03,0.0001068,2]
[347678488,1736051254436,-500.0,0.0001068,2]
[347678489,1736051254463,-500.0,0.0001068,2]
[347678490,1736051254490,-500.0,0.0001068,2]
[347678491,1736051254517,-5149.62,0.0001068,2]
[347678492,1736051254542,-500.0,0.0001068,2]
[347678493,1736051254568,-500.0,0.0001068,2]
[347678494,1736051254593,-602.96,0.0001068,2]
[347678495,1736051254617,-500.0,0.0001068,2]
[347678496,1736051254642,-184.01,0.0001068,2]
[347678497,1736051254666,-531.58,0.0001068,2]
[347678498,1736051254690,-500.0,0.0001068,2]
[347678499,1736051254714,-500.0,0.0001068,2]
[347678500,1736051254738,-708.54,0.0001068,2]
[347678501,1736051254761,-402.04,0.0001068,2]
[347678502,1736051254784,-500.0,0.0001068,2]
[347678503,1736051254808,-500.0,0.0001068,2]
[347678504,1736051254832,-500.0,0.0001068,2]
[347678505,1736051254858,-500.0,0.0001068,2]
[347678506,1736051254882,-498.9,0.0001068,2]
[347678507,1736051254906,-500.0,0.0001068,2]
[347678508,1736051254930,-500.0,0.0001068,2]
[347678509,1736051254952,-245.95,0.0001068,2]
[347678510,1736051254976,-500.0,0.0001068,2]
[347678511,1736051254999,-500.0,0.0001068,2]
[347678512,1736051255023,-500.0,0.0001068,2]
[347678513,1736051255047,-500.0,0.0001068,2]
[347678514,1736051255071,-500.0,0.0001068,2]
[347678515,1736051255095,-600.84,0.0001068,2]
[347678516,1736051255119,-1567.43,0.0001068,2]
[347678517,1736051255142,-500.0,0.0001068,2]
[347678518,1736051255166,-549.83,0.0001068,2]
[347678519,1736051255189,-500.0,0.0001068,2]
[347678520,1736051255212,-500.0,0.0001068,2]
[347678521,1736051255239,-500.0,0.0001068,2]
[347678522,1736051255261,-500.0,0.0001068,2]
[347678523,1736051255286,-155.98,0.0001068,2]
[347678524,1736051255312,-480.66,0.0001068,2]
[347678525,1736051255334,-323.4,0.0001068,2]
[347678526,1736051255356,-500.0,0.0001068,2]
[347678527,1736051255382,-609.36,0.0001068,2]
[347678528,1736051255405,-500.0,0.0001068,2]
[347678529,1736051255430,-1272.72,0.0001068,2]
[347678530,1736051255453,-500.0,0.0001068,2]
[347678531,1736051255477,-500.0,0.0001068,2]
[347678532,1736051255500,-988.39,0.0001068,2]
[347678533,1736051255524,-500.0,0.0001068,2]
[347678534,1736051255547,-500.0,0.0001068,2]
[347678535,1736051255571,-356.13,0.0001068,2]
[347678536,1736051255598,-500.0,0.0001068,2]
[347678537,1736051255623,-1172.45,0.0001068,2]
[347678538,1736051255648,-500.0,0.0001068,2]
[347678539,1736051255672,-500.0,0.0001068,2]
[347678540,1736051255696,-500.0,0.0001068,2]
[347678541,1736051255721,-500.0,0.0001068,2]
[347678542,1736051255745,-500.0,0.0001068,2]
[347678543,1736051255768,-256.2,0.0001068,2]
[347678544,1736051255794,-500.0,0.0001068,2]
[347678545,1736051255816,-259.75,0.0001068,2]
[347678546,1736051255841,-890.96,0.0001068,2]
[347678547,1736051255867,-500.0,0.0001068,2]
[347678548,1736051255895,-501.98,0.0001068,2]
[347678549,1736051255919,-500.0,0.0001068,2]
[347678550,1736051255943,-500.0,0.0001068,2]
[347678551,1736051255969,-500.0,0.0001068,2]
[347678552,1736051255993,-500.0,0.0001068,2]
[347678553,1736051256019,-180.29,0.0001068,2]
[347678554,1736051256044,-216.77,0.0001068,2]
[347678555,1736051256068,-500.0,0.0001068,2]
[347678556,1736051256091,-917.41,0.0001068,2]
[347678557,1736051256115,-500.0,0.0001068,2]
[347678558,1736051256140,-552.04,0.0001068,2]
[347678559,1736051256163,-239.59,0.0001068,2]
[347678560,1736051256186,-349.54,0.0001068,2]
[347678561,1736051256209,-1563.18,0.0001068,2]
[347678562,1736051256234,-594.92953308,0.0001068,2]
[347678563,1736051256255,-405.43504886,0.0001068,2]
[347678564,1736051256279,-501.65741438,0.00010681,2]
[347678565,1736051256302,-160.42528146,0.00010681,2]
[347678566,1736051256324,-500.0,0.00010681,2]
[347678567,1736051256347,-494.99658422,0.00010681,2]
[347678568,1736051256369,-500.0,0.00010681,2]
[347678569,1736051256392,-383.34338936,0.00010681,2]
[347678570,1736051256417,-500.0,0.00010681,2]
[347678571,1736051256440,-239.05222312,0.00010681,2]
[347678572,1736051256461,-500.0,0.00010681,2]
[347678573,1736051256483,-563.18418734,0.00010681,2]
[347678574,1736051256506,-500.0,0.00010681,2]
[347678575,1736051256529,-300.70864044,0.00010681,2]
[347678576,1736051256551,-313.83786466,0.00010681,2]
[347678577,1736051256576,-500.0,0.00010681,2]
[347678578,1736051256599,-500.0,0.00010681,2]
[347678579,1736051256623,-1836.54,0.00010681,2]
[347678580,1736051256647,-500.0,0.00010681,2]
[347678581,1736051256670,-506.89,0.00010681,2]
[347678582,1736051256693,-1292.16,0.00010681,2]
[347678583,1736051256716,-500.0,0.00010681,2]
[347678584,1736051256740,-500.0,0.00010681,2]
[347678585,1736051256764,-301.17,0.00010681,2]
[347678586,1736051256787,-500.0,0.00010681,2]
[347678587,1736051256811,-500.0,0.00010681,2]
[347678588,1736051256835,-430.04317514,0.00010681,2]
[347678589,1736051256858,-567.18,0.00010681,2]
[347678590,1736051256882,-500.0,0.00010681,2]
[347678591,1736051256905,-500.0,0.00010681,2]
[347678592,1736051256927,-500.0,0.00010681,2]
[347678593,1736051256951,-533.84,0.00010681,2]
[347678594,1736051256976,-339.21097196,0.00010681,2]
[347678595,1736051256999,-500.0,0.00010681,2]
[347678596,1736051257023,-742.63,0.00010681,2]
[347678597,1736051257047,-500.0,0.00010681,2]
[347678598,1736051257071,-487.77752081,0.00010681,2]
[347678599,1736051257096,-500.0,0.00010681,2]
[347678600,1736051257120,-869.58,0.00010681,2]
[347678601,1736051257143,-500.0,0.00010681,2]
[347678602,1736051257167,-509.85152044,0.00010681,2]
[347678603,1736051257191,-500.0,0.00010681,2]
[347678604,1736051257216,-1069.16,0.00010681,2]
[347678605,1736051257248,-742.45,0.00010681,2]
[347678606,1736051257272,-500.0,0.00010681,2]
[347678607,1736051257452,-152.19,0.00010681,2]
[347678608,1736051257477,-5000.0,0.00010855,2]
[347678609,1736051257499,-152.54,0.00010907,2]
[347678610,1736051257523,-1933.48254339,0.00010944,2]
[347678611,1736051257548,-150.0,0.00010952,2]
[347678612,1736051257572,-500.0,0.00010953,2]
[347678613,1736051257596,-500.0,0.00010953,2]
[347678614,1736051257620,-1820.58,0.00010953,2]
[347678615,1736051257645,-562.23,0.00010953,2]
[347678616,1736051257669,-2054.34,0.00010953,2]
[347678617,1736051257694,-1370.28,0.00010953,2]
[347678618,1736051257719,-500.0,0.00010953,2]
[347678619,1736051257743,-1120.71,0.00010953,2]
[347678620,1736051257767,-500.0,0.00010953,2]
[347678621,1736051257790,-606.96,0.00010953,2]
[347678622,1736051257815,-1347.54,0.00010953,2]
[347678623,1736051257838,-500.0,0.00010953,2]
[347678624,1736051257861,-754.61,0.00010953,2]
[347678625,1736051257884,-500.0,0.00010953,2]
[347678626,1736051257907,-528.74,0.00010953,2]
[347678627,1736051257930,-1238.95,0.00010953,2]
[347678628,1736051257952,-547.29,0.00010953,2]
[347678629,1736051257975,-730.87,0.00010953,2]
[347678630,1736051257998,-500.0,0.00010954,2]
[347678631,1736051258020,-500.0,0.00010954,2]
[347678632,1736051258044,-500.0,0.00010954,2]
[347678633,1736051258068,-390.21,0.00010954,2]
[347678634,1736051258092,-500.0,0.00010954,2]
[347678635,1736051258116,-278.76,0.00010954,2]
[347678636,1736051258140,-241.41,0.00010954,2]
[347678637,1736051258163,-500.0,0.00010954,2]
[347678638,1736051258187,-500.0,0.00010954,2]
[347678639,1736051258210,-500.0,0.00010954,2]
[347678640,1736051258234,-500.0,0.00010954,2]
[347678641,1736051258257,-500.0,0.00010954,2]
[347678642,1736051258279,-269.37,0.00010954,2]
[347678643,1736051258304,-500.0,0.00010954,2]
[347678644,1736051258328,-500.0,0.00010954,2]
[347678645,1736051258350,-256.07,0.00010954,2]
[347678646,1736051258372,-500.0,0.00010954,2]
[347678647,1736051258396,-500.0,0.00010954,2]
[347678648,1736051258419,-500.0,0.00010954,2]
[347678649,1736051258444,-550.47,0.00010954,2]
[347678650,1736051258467,-500.0,0.00010954,2]
[347678651,1736051258492,-180.25,0.00010954,2]
[347678652,1736051258516,-500.0,0.00010954,2]
[347678653,1736051258539,-368.77,0.00010954,2]
[347678654,1736051258563,-841.26,0.00010954,2]
[347678655,1736051258587,-841.26,0.00010954,2]
[347678656,1736051258609,-1153.38,0.00010954,2]
[347678657,1736051258634,-330.27,0.00010954,2]
[347678658,1736051258659,-187.73,0.00010954,2]
[347678659,1736051258682,-500.0,0.00010954,2]
[347678660,1736051258707,-520.24,0.00010954,2]
[347678661,1736051258730,-195.59,0.00010954,2]
[347678662,1736051258756,-760.0,0.00010954,2]
[347678663,1736051258780,-500.0,0.00010954,2]
[347678664,1736051258804,-500.0,0.00010954,2]
[347678665,1736051258828,-788.82,0.00010954,2]
[347678666,1736051258851,-500.0,0.00010954,2]
[347678667,1736051258874,-500.0,0.00010954,2]
[347678668,1736051258897,-500.0,0.00010954,2]
[347678669,1736051258920,-500.0,0.00010954,2]
[347678670,1736051258943,-1540.896891,0.00010954,2]
[347678671,1736051258966,-1540.896891,0.00010954,2]
[347678672,1736051258989,-156.453335,0.00010954,2]
[347678673,1736051259012,-500.0,0.00010954,2]
[347678674,1736051259035,-500.0,0.00010954,2]
[347678675,1736051259056,-156.573944,0.00010954,2]
[347678676,1736051259080,-500.0,0.00010954,2]
[347678677,1736051259103,-500.0,0.00010954,2]
[347678678,1736051259126,-500.0,0.00010954,2]
[347678679,1736051259148,-500.0,0.00010954,2]
[347678680,1736051259170,-500.0,0.00010954,2]
[347678681,1736051259193,-1863.827328,0.00010954,2]
[347678682,1736051259215,-1863.827328,0.00010954,2]
[347678683,1736051259240,-1500.71,0.00010954,2]
[347678684,1736051259262,-500.0,0.00010954,2]
[347678685,1736051259287,-500.0,0.00010954,2]
[347678686,1736051259311,-500.0,0.00010954,2]
[347678687,1736051259334,-500.0,0.00010954,2]
[347678688,1736051259358,-500.0,0.00010954,2]
[347678689,1736051259380,-500.0,0.00010954,2]
[347678690,1736051259408,-277.73,0.00010954,2]
[347678691,1736051259431,-500.0,0.00010954,2]
[347678692,1736051259453,-500.0,0.00010954,2]
[347678693,1736051259476,-496.64,0.00010954,2]
[347678694,1736051259499,-500.0,0.00010954,2]
[347678695,1736051259522,-163.28,0.00010954,2]
[347678696,1736051259545,-500.0,0.00010954,2]
[347678697,1736051259568,-500.0,0.00010954,2]
[347678698,1736051259592,-500.0,0.00010954,2]
[347678699,1736051259614,-2093.2,0.00010954,2]
[347678700,1736051259638,-500.0,0.00010954,2]
[347678701,1736051259660,-500.0,0.00010954,2]
[347678702,1736051259683,-500.0,0.00010954,2]
[347678703,1736051259706,-500.0,0.00010954,2]
[347678704,1736051259731,-1060.83,0.00010954,2]
[347678705,1736051259755,-500.0,0.00010954,2]
[347678706,1736051259780,-500.0,0.00010954,2]
[347678707,1736051259807,-500.0,0.00010954,2]
[347678708,1736051259830,-295.83,0.00010954,2]
[347678709,1736051259855,-1546.57,0.00010954,2]
[347678710,1736051259880,-344.95,0.00010954,2]
[347678711,1736051259906,-922.36,0.00010954,2]
[347678712,1736051259930,-500.0,0.00010954,2]
[347678713,1736051259955,-500.0,0.00010954,2]
[347678714,1736051259981,-500.0,0.00010954,2]
[347678715,1736051260008,-5149.62,0.00010954,2]
[347678716,1736051260033,-500.0,0.00010954,2]
[347678717,1736051260058,-500.0,0.00010954,2]
[347678718,1736051260081,-500.0,0.00010954,2]
[347678719,1736051260106,-708.54,0.00010954,2]
[347678720,1736051260131,-500.0,0.00010954,2]
[347678721,1736051260157,-500.0,0.00010954,2]
[347678722,1736051260181,-500.0,0.00010954,2]
[347678723,1736051260206,-500.0,0.00010954,2]
[347678724,1736051260232,-500.0,0.00010954,2]
[347678725,1736051260257,-500.0,0.00010954,2]
[347678726,1736051260285,-500.0,0.00010954,2]
[347678727,1736051260311,-500.0,0.00010954,2]
[347678728,1736051260335,-500.0,0.00010954,2]
[347678729,1736051260360,-314.58,0.00010954,2]
[347678730,1736051260384,-500.0,0.00010954,2]
[347678731,1736051260409,-500.0,0.00010954,2]
[347678732,1736051260433,-600.84,0.00010954,2]
[347678733,1736051260457,-1567.43,0.00010954,2]
[347678734,1736051260481,-303.29,0.00010954,2]
[347678735,1736051260506,-500.0,0.00010954,2]
[347678736,1736051260529,-500.0,0.00010954,2]
[347678737,1736051260553,-500.0,0.00010954,2]
[347678738,1736051260577,-500.0,0.00010954,2]
[347678739,1736051260600,-215.66,0.00010954,2]
[347678740,1736051260623,-500.0,0.00010954,2]
[347678741,1736051260797,-1272.72,0.00010954,2]
[347678742,1736051260824,-500.0,0.00010954,2]
[347678743,1736051260848,-500.0,0.00010954,2]
[347678744,1736051260873,-988.39,0.00010954,2]
[347678745,1736051260897,-500.0,0.00010954,2]
[347678746,1736051260920,-343.77,0.00010954,2]
[347678747,1736051260944,-500.0,0.00010954,2]
[347678748,1736051260967,-1172.45,0.00010954,2]
[347678749,1736051260992,-500.0,0.00010954,2]
[347678750,1736051261016,-500.0,0.00010954,2]
[347678751,1736051261040,-500.0,0.00010954,2]
[347678752,1736051261063,-500.0,0.00010954,2]
[347678753,1736051261088,-500.0,0.00010954,2]
[347678754,1736051261111,-500.0,0.00010954,2]
[347678755,1736051261135,-890.96,0.00010954,2]
[347678756,1736051261160,-343.6,0.00010954,2]
[347678757,1736051261184,-500.0,0.00010954,2]
[347678758,1736051261207,-271.69,0.00010954,2]
[347678759,1736051261234,-552.89,0.00010954,2]
[347678760,1736051261261,-307.79,0.00010954,2]
[347678761,1736051261287,-917.41,0.00010954,2]
[347678762,1736051261313,-294.95888902,0.00010954,2]
[347678763,1736051261337,-552.04,0.00010954,2]
[347678764,1736051261361,-1563.18,0.00010954,2]
[347678765,1736051261385,-500.0,0.00010955,2]
[347678766,1736051261409,-249.36155622,0.00010955,2]
[347678767,1736051261434,-556.11563131,0.00010955,2]
[347678768,1736051261459,-396.5582325,0.00010955,2]
[347678769,1736051261485,-179.83026727,0.00010955,2]
[347678770,1736051261511,-319.4,0.00010955,2]
[347678771,1736051261536,-500.0,0.00010955,2]
[347678772,1736051261563,-1836.54,0.00010955,2]
[347678773,1736051261588,-500.0,0.00010955,2]
[347678774,1736051261615,-506.89,0.00010955,2]
[347678775,1736051261641,-1292.16,0.00010955,2]
[347678776,1736051261666,-500.0,0.00010955,2]
[347678777,1736051261692,-500.0,0.00010955,2]
[347678778,1736051261716,-500.0,0.00010955,2]
[347678779,1736051261741,-500.0,0.00010955,2]
[347678780,1736051261765,-567.18,0.00010955,2]
[347678781,1736051261790,-500.0,0.00010955,2]
[347678782,1736051261816,-500.0,0.00010955,2]
[347678783,1736051261840,-500.0,0.00010955,2]
[347678784,1736051261865,-533.84,0.00010955,2]
[347678785,1736051261890,-498.86,0.00010955,2]
[347678786,1736051261915,-742.63,0.00010955,2]
[347678787,1736051261940,-500.0,0.00010955,2]